fUSD/lending_fUSD_20260227
["ID","MTS","AMOUNT","RATE_DAILY","PERIOD"]
[406801278,1772203857653,-500.0,0.00038149,120]
[406801279,1772203857662,-500.0,0.00038149,120]
[406801280,1772203857671,-198774.0,0.0003815,20]
[406801281,1772203857681,-5639.98,0.000382,2]
[406801282,1772203857690,-150.0,0.00038252,2]
[406801283,1772203857699,-1040.2,0.00038255,7]
[406801284,1772203857708,-455.69291,0.00038288,30]
[406801285,1772203857718,-185.86919859,0.000383,30]
[406801286,1772203857728,-6865.0,0.00038356,120]
[406801287,1772203857737,-10000.0,0.00038356,120]
[406801288,1772203857747,-10000.0,0.00038356,120]
[406801289,1772203857757,-9208.96,0.00038356,3]
[406801290,1772203857767,-632.72,0.00038356,3]
[406801291,1772203857776,-693.3919763,0.00038369,2]
[406801292,1772203857785,-695.39793187,0.00038369,2]
[406801293,1772203857794,-200.0,0.00038373,5]
[406801294,1772203857803,-4068.84,0.000384,14]
[406801295,1772203857812,-2382.62,0.000384,14]
[406801296,1772203857822,-150.0,0.000384,30]
[406801297,1772203857831,-455.69291,0.00038488,30]
[406801298,1772203857840,-509.0,0.00038566,23]
[406801299,1772203857849,-9208.96,0.0003863,3]
[406801300,1772203857858,-632.72,0.0003863,3]
[406801301,1772203857867,-9914.26355113,0.00038665,2]
[406801302,1772203857877,-455.69291,0.00038688,30]
[406801303,1772203857886,-724.71,0.000387,14]
[406801304,1772203857896,-1000.0,0.000388,120]
[406801305,1772203857905,-1278.15002319,0.00038836,30]
[406801306,1772203857914,-9208.96,0.00038904,3]
[406801307,1772203857924,-632.72,0.00038904,3]
[406801308,1772203857934,-211.0,0.0003891,30]
[406801309,1772203857943,-1040.2,0.00038917,7]
[406801310,1772203857953,-1000.0,0.00039,120]
[406801311,1772203857963,-160.0,0.00039,120]
[406801312,1772203857972,-26657.57892796,0.00039,2]
[406801313,1772203857982,-396.00419288,0.00039,14]
[406801314,1772203857991,-36555.46185015,0.00039,10]
[406801315,1772203858000,-455.69291,0.00039088,30]
[406801316,1772203858010,-9208.96,0.00039178,3]
[406801317,1772203858019,-632.72,0.00039178,3]
[406801318,1772203858029,-318.74,0.00039221,30]
[406801319,1772203858038,-455.69291,0.00039288,30]
[406801320,1772203858047,-168.0,0.00039328,2]
[406801321,1772203858056,-200.0,0.00039372,5]
[406801322,1772203858066,-4068.84,0.000394,14]
[406801323,1772203858076,-2382.62,0.000394,14]
[406801324,1772203858086,-168.0,0.00039415,2]
[406801325,1772203858095,-9208.96,0.00039452,3]
[406801326,1772203858105,-632.72,0.00039452,3]
[406801327,1772203858114,-455.69291,0.00039488,30]
[406801328,1772203858123,-1040.2,0.00039578,30]
[406801329,1772203858133,-455.69291,0.00039688,30]
[406801330,1772203858142,-9208.96,0.00039726,3]
[406801331,1772203858151,-632.72,0.00039726,3]
[406801332,1772203858160,-724.71,0.000398,14]
[406801333,1772203858170,-308.0,0.00039883,120]
[406801334,1772203858179,-455.69291,0.00039888,30]
[406801335,1772203858188,-8782.68815971,0.000399,2]
[406801336,1772203858197,-356.47604924,0.00039953,2]
[406801337,1772203858206,-151.0,0.00039954,7]
[406801338,1772203858215,-171.0,0.00039984,120]
[406801339,1772203858225,-171.0,0.00039988,120]
[406801340,1772203858235,-57702.30900296,0.00039999,2]
[406801341,1772203858244,-2173.96295667,0.0004,31]
[406801342,1772203858253,-1426.51765904,0.0004,120]
[406801343,1772203858262,-150.0,0.0004,120]
[406801344,1772203858271,-8102.0,0.0004,30]
[406801345,1772203858280,-5000.0,0.0004,7]
[406801346,1772203858290,-16063.0,0.0004,120]
[406801347,1772203858299,-530.07132271,0.0004,120]
[406801348,1772203858308,-232.43799838,0.0004,120]
[406801349,1772203858318,-428.68305344,0.0004,7]
[406801350,1772203858327,-2228.17767087,0.0004,120]
[406801351,1772203858336,-2225.72192341,0.0004,7]
[406801352,1772203858345,-170.64899109,0.0004,120]
[406801353,1772203858355,-6000.0,0.0004,3]
[406801354,1772203858364,-496.53196946,0.0004,120]
[406801355,1772203858375,-995.20287872,0.0004,7]
[406801356,1772203858385,-1276.14794687,0.0004,14]
[406801357,1772203858395,-392.02779585,0.0004,2]
[406801358,1772203858405,-1566.50481207,0.0004,2]
[406801359,1772203858419,-4123.94271328,0.0004,2]
[406801360,1772203858428,-8036.726468,0.0004,120]
[406801361,1772203858437,-234.10711812,0.0004,120]
[406801362,1772203858447,-219.60375487,0.0004,2]
[406801363,1772203858456,-760.22722994,0.0004,2]
[406801364,1772203858465,-164.86976679,0.0004,120]
[406801365,1772203858474,-12900.02287852,0.0004,120]
[406801366,1772203858485,-277.79461607,0.0004,30]
[406801367,1772203858494,-355.70752278,0.0004,30]
[406801368,1772203858504,-1829.0,0.0004,120]
[406801369,1772203858513,-601.81452321,0.0004,2]
[406801370,1772203858522,-34226.5757402,0.0004,10]
[406801371,1772203858532,-10038.23633371,0.0004,120]
[406801372,1772203858541,-315.90831792,0.0004,2]
[406801373,1772203858551,-3000.0,0.0004,7]
[406801374,1772203858560,-162.21478329,0.0004,2]
[406801375,1772203858570,-10726.43449571,0.0004,2]
[406801376,1772203858578,-25705.87990451,0.0004,120]
[406801377,1772203858587,-518.17640426,0.0004,120]
[406801378,1772203858596,-461.39341816,0.0004,7]
[406801379,1772203858606,-811.32772971,0.0004,3]
[406801380,1772203858615,-222.91,0.0004,120]
[406801381,1772203858624,-3600.15629349,0.0004,120]
[406801382,1772203858633,-22499.99,0.0004,120]
[406801383,1772203858642,-9999.99,0.0004,120]
[406801384,1772203858651,-22500.0,0.0004,120]
[406801385,1772203858660,-22500.0,0.0004,120]
[406801386,1772203858669,-22500.0,0.0004,120]
[406801387,1772203858678,-12163.08,0.0004,120]
[406801388,1772203858687,-9999.98,0.0004,120]
[406801389,1772203858696,-12500.0,0.0004,120]
[406801390,1772203858706,-12500.0,0.0004,120]
[406801391,1772203858715,-15000.0,0.0004,120]
[406801392,1772203858725,-174.00015664,0.0004,3]
[406801393,1772203858734,-160.0,0.0004,10]
[406801394,1772203858743,-160.0,0.0004,3]
[406801395,1772203858753,-13012.0,0.0004,120]
[406801396,1772203858762,-9208.96,0.0004,3]
[406801397,1772203858772,-632.72,0.0004,3]
[406801398,1772203858781,-455.69291,0.00040088,30]
[406801399,1772203858790,-2000.0,0.000401,2]
[406801400,1772203858799,-193.603,0.00040145,2]
[406801401,1772203858808,-618.0,0.00040145,2]
[406801402,1772203858818,-1340.0,0.00040145,2]
[406801403,1772203858827,-1277.0,0.00040145,2]
[406801404,1772203858836,-1211.0,0.00040145,2]
[406801405,1772203858845,-921.0,0.00040145,2]
[406801406,1772203858855,-5983.0,0.00040145,2]
[406801407,1772203858864,-2456.0,0.00040145,2]
[406801408,1772203858875,-150.0,0.00040165,2]
[406801409,1772203858885,-1040.2,0.0004024,30]
[406801410,1772203858894,-9208.96,0.00040273,3]
[406801411,1772203858904,-632.72,0.00040273,3]
[406801412,1772203858913,-455.69291,0.00040288,30]
[406801413,1772203858923,-15000.0,0.000403,120]
[406801414,1772203858932,-213.5114739,0.00040373,5]
[406801415,1772203858942,-22500.0,0.00040375,120]
[406801416,1772203858951,-22500.0,0.00040375,120]
[406801417,1772203858960,-22500.0,0.00040375,120]
[406801418,1772203858970,-12500.0,0.00040375,120]
[406801419,1772203858979,-12500.0,0.00040375,120]
[406801420,1772203858988,-455.69291,0.00040488,30]
[406801421,1772203858998,-1000.0,0.000405,30]
[406801422,1772203859007,-1000.0,0.000405,30]
[406801423,1772203859016,-1000.0,0.000405,30]
[406801424,1772203859026,-1000.0,0.000405,30]
[406801425,1772203859036,-1000.0,0.000405,30]
[406801426,1772203859045,-1000.0,0.000405,30]
[406801427,1772203859055,-1000.0,0.000405,30]
[406801428,1772203859064,-1000.0,0.000405,30]
[406801429,1772203859074,-1000.0,0.000405,30]
[406801430,1772203859084,-1000.0,0.000405,30]
[406801431,1772203859093,-1000.0,0.000405,30]
[406801432,1772203859103,-1000.0,0.000405,120]
[406801433,1772203859113,-309.71495035,0.000405,30]
[406801434,1772203859122,-2382.62,0.000405,14]
[406801435,1772203859132,-4068.84,0.000405,14]
[406801436,1772203859141,-9208.96,0.00040547,3]
[406801437,1772203859151,-632.72,0.00040547,3]
[406801438,1772203859160,-845.0,0.00040553,11]
[406801439,1772203859170,-15000.0,0.000406,120]
[406801440,1772203859179,-500.0,0.00040644,30]
[406801441,1772203859188,-180.5,0.00040647,30]
[406801442,1772203859197,-455.69291,0.00040688,30]
[406801443,1772203859206,-500.0,0.00040699,120]
[406801444,1772203859216,-623.5813736,0.00040699,120]
[406801445,1772203859226,-500.0,0.00040699,120]
[406801446,1772203859235,-500.0,0.00040699,120]
[406801447,1772203859244,-281470.62,0.000407,6]
[406801448,1772203859253,-22500.0,0.0004075,120]
[406801449,1772203859262,-22500.0,0.0004075,120]
[406801450,1772203859272,-22500.0,0.0004075,120]
[406801451,1772203859281,-12500.0,0.0004075,120]
[406801452,1772203859290,-400.0,0.0004077,3]
[406801453,1772203859300,-724.71,0.000408,14]
[406801454,1772203859310,-9208.96,0.00040821,3]
[406801455,1772203859319,-632.72,0.00040821,3]
[406801456,1772203859329,-500.0,0.00040849,2]
[406801457,1772203859339,-2000.0,0.00040855,120]
[406801458,1772203859348,-455.69291,0.00040888,30]
[406801459,1772203859356,-1964.8222745,0.000409,2]
[406801460,1772203859366,-15000.0,0.000409,120]
[406801461,1772203859375,-1040.2,0.00040901,30]
[406801462,1772203859384,-211.0,0.0004093,30]
[406801463,1772203859394,-500.0,0.00040947,120]
[406801464,1772203859404,-2000.0,0.00040949,120]
[406801465,1772203859425,-1373.0,0.0004097,11]
[406801466,1772203859434,-2000.0,0.0004098,120]
[406801467,1772203859562,-11289.15578524,0.00041,120]
[406801468,1772203859572,-1000.0,0.00041,120]
[406801469,1772203859581,-1724.17059947,0.00041,120]
[406801470,1772203859590,-252.77720625,0.00041,21]
[406801471,1772203859599,-275214.780703,0.00041,120]
[406801472,1772203859609,-243.04174573,0.00041,30]
[406801473,1772203859619,-190.82294354,0.00041,120]
[406801474,1772203859630,-56754.97063848,0.00041,5]
[406801475,1772203859639,-404.26292176,0.00041,7]
[406801476,1772203859649,-2318.152568,0.00041,120]
[406801477,1772203859659,-1563.62426102,0.00041,120]
[406801478,1772203859669,-132242.882855,0.00041,120]
[406801479,1772203859678,-7780.3490091,0.00041,2]
[406801480,1772203859687,-660.59032,0.00041,120]
[406801481,1772203859696,-455.69291,0.00041088,30]
[406801482,1772203859706,-9208.96,0.00041095,3]
[406801483,1772203859715,-632.72,0.00041095,3]
[406801484,1772203859725,-844.0,0.00041096,120]
[406801485,1772203859736,-300.0,0.00041096,10]
[406801486,1772203859746,-150.0,0.00041096,10]
[406801487,1772203859756,-151.0,0.00041096,120]
[406801488,1772203859766,-171.91717,0.00041096,120]
[406801489,1772203859776,-151.0,0.00041096,120]
[406801490,1772203859786,-151.0,0.00041096,120]
[406801491,1772203859796,-151.0,0.00041096,120]
[406801492,1772203859806,-240.0,0.00041096,2]
[406801493,1772203859815,-240.0,0.00041096,2]
[406801494,1772203859824,-240.0,0.00041096,2]
[406801495,1772203859834,-240.0,0.00041096,2]
[406801496,1772203859844,-240.0,0.00041096,2]
[406801497,1772203859853,-240.0,0.00041096,2]
[406801498,1772203859863,-240.0,0.00041096,2]
[406801499,1772203859872,-240.0,0.00041096,2]
[406801500,1772203859881,-240.0,0.00041096,2]
[406801501,1772203859891,-240.0,0.00041096,2]
[406801502,1772203859900,-151.0,0.00041096,120]
[406801503,1772203859909,-240.0,0.00041096,2]
[406801504,1772203859932,-151.0,0.00041096,120]
[406801505,1772203859941,-240.0,0.00041096,2]
[406801506,1772203859950,-151.0,0.00041096,120]
[406801507,1772203859960,-240.0,0.00041096,2]
[406801508,1772203859972,-151.0,0.00041096,120]
[406801509,1772203859982,-240.0,0.00041096,2]
[406801510,1772203859991,-151.0,0.00041096,120]
[406801511,1772203859999,-240.0,0.00041096,2]
[406801512,1772203860009,-151.0,0.00041096,120]
[406801513,1772203860019,-240.0,0.00041096,2]
[406801514,1772203860028,-151.0,0.00041096,120]
[406801515,1772203860038,-240.0,0.00041096,2]
[406801516,1772203860047,-151.0,0.00041096,120]
[406801517,1772203860056,-240.0,0.00041096,2]
[406801518,1772203860066,-240.0,0.00041096,2]
[406801519,1772203860076,-240.0,0.00041096,2]
[406801520,1772203860086,-216.381473,0.00041096,120]
[406801521,1772203860096,-151.0,0.00041096,120]
[406801522,1772203860105,-151.0,0.00041096,120]
[406801523,1772203860115,-151.0,0.00041096,120]
[406801524,1772203860124,-151.0,0.00041096,120]
[406801525,1772203860133,-151.0,0.00041096,120]
[406801526,1772203860143,-237.433386,0.00041096,120]
[406801527,1772203860152,-237.433386,0.00041096,120]
[406801528,1772203860161,-237.433386,0.00041096,120]
[406801529,1772203860171,-237.433386,0.00041096,120]
[406801530,1772203860181,-237.433386,0.00041096,120]
[406801531,1772203860191,-237.433386,0.00041096,120]
[406801532,1772203860201,-237.433386,0.00041096,120]
[406801533,1772203860210,-237.433386,0.00041096,120]
[406801534,1772203860219,-237.433386,0.00041096,120]
[406801535,1772203860229,-237.433386,0.00041096,120]
[406801536,1772203860238,-237.433386,0.00041096,120]
[406801537,1772203860248,-237.433386,0.00041096,120]
[406801538,1772203860257,-237.433386,0.00041096,120]
[406801539,1772203860267,-237.433386,0.00041096,120]
[406801540,1772203860277,-237.433386,0.00041096,120]
[406801541,1772203860286,-237.433386,0.00041096,120]
[406801542,1772203860296,-237.433386,0.00041096,120]
[406801543,1772203860306,-237.433386,0.00041096,120]
[406801544,1772203860315,-237.433386,0.00041096,120]
[406801545,1772203860324,-237.433386,0.00041096,120]
[406801546,1772203860333,-151.0,0.00041096,120]
[406801547,1772203860343,-151.0,0.00041096,120]
[406801548,1772203860352,-151.0,0.00041096,120]
[406801549,1772203860362,-151.0,0.00041096,120]
[406801550,1772203860371,-161.072308,0.00041096,30]
[406801551,1772203860380,-161.072308,0.00041096,30]
[406801552,1772203860389,-161.072308,0.00041096,30]
[406801553,1772203860398,-161.072308,0.00041096,30]
[406801554,1772203860415,-161.072308,0.00041096,30]
[406801555,1772203860435,-161.072308,0.00041096,30]
[406801556,1772203860445,-161.072308,0.00041096,30]
[406801557,1772203860455,-161.072308,0.00041096,30]
[406801558,1772203860464,-161.072308,0.00041096,30]
[406801559,1772203860473,-161.072308,0.00041096,30]
[406801560,1772203860485,-161.072308,0.00041096,30]
[406801561,1772203860496,-161.072308,0.00041096,30]
[406801562,1772203860506,-161.072308,0.00041096,30]
[406801563,1772203860515,-161.072308,0.00041096,30]
[406801564,1772203860525,-161.072308,0.00041096,30]
[406801565,1772203860535,-161.072308,0.00041096,30]
[406801566,1772203860544,-161.072308,0.00041096,30]
[406801567,1772203860553,-161.072308,0.00041096,30]
[406801568,1772203860562,-161.072308,0.00041096,30]
[406801569,1772203860571,-161.072301,0.00041096,30]
[406801570,1772203860580,-151.0,0.00041096,120]
[406801571,1772203860590,-151.0,0.00041096,120]
[406801572,1772203860599,-151.0,0.00041096,120]
[406801573,1772203860608,-158.469121,0.00041096,120]
[406801574,1772203860617,-151.0,0.00041096,120]
[406801575,1772203860626,-273.798296,0.00041096,120]
[406801576,1772203860635,-273.798296,0.00041096,120]
[406801577,1772203860644,-273.798296,0.00041096,120]
[406801578,1772203860653,-273.798296,0.00041096,120]
[406801579,1772203860663,-273.798296,0.00041096,120]
[406801580,1772203860672,-273.798296,0.00041096,120]
[406801581,1772203860681,-273.798296,0.00041096,120]
[406801582,1772203860690,-273.798296,0.00041096,120]
[406801583,1772203860699,-273.798296,0.00041096,120]
[406801584,1772203860708,-273.798296,0.00041096,120]
[406801585,1772203860718,-273.798296,0.00041096,120]
[406801586,1772203860727,-273.798296,0.00041096,120]
[406801587,1772203860737,-273.798296,0.00041096,120]
[406801588,1772203860746,-273.798296,0.00041096,120]
[406801589,1772203860756,-273.798296,0.00041096,120]
[406801590,1772203860766,-273.798296,0.00041096,120]
[406801591,1772203860775,-273.798296,0.00041096,120]
[406801592,1772203860784,-273.798296,0.00041096,120]
[406801593,1772203860794,-273.798296,0.00041096,120]
[406801594,1772203860803,-273.798303,0.00041096,120]
[406801595,1772203860813,-151.0,0.00041096,120]
[406801596,1772203860822,-151.0,0.00041096,120]
[406801597,1772203860831,-151.0,0.00041096,120]
[406801598,1772203860840,-151.0,0.00041096,120]
[406801599,1772203860849,-151.0,0.00041096,120]
[406801600,1772203860858,-151.0,0.00041096,120]
[406801601,1772203860867,-151.0,0.00041096,120]
[406801602,1772203860877,-151.0,0.00041096,120]
[406801603,1772203860886,-151.0,0.00041096,120]
[406801604,1772203860895,-170.596384,0.00041096,120]
[406801605,1772203860905,-151.0,0.00041096,120]
[406801606,1772203860917,-151.0,0.00041096,120]
[406801607,1772203860927,-156.389733,0.00041096,120]
[406801608,1772203860940,-192.252185,0.00041096,30]
[406801609,1772203860949,-192.252185,0.00041096,30]
[406801610,1772203860959,-192.252185,0.00041096,30]
[406801611,1772203860968,-192.252185,0.00041096,30]
[406801612,1772203860977,-192.252185,0.00041096,30]
[406801613,1772203860987,-158.311162,0.00041096,120]
[406801614,1772203860996,-192.252185,0.00041096,30]
[406801615,1772203861005,-192.252185,0.00041096,30]
[406801616,1772203861015,-192.252185,0.00041096,30]
[406801617,1772203861024,-192.252185,0.00041096,30]
[406801618,1772203861034,-192.252185,0.00041096,30]
[406801619,1772203861043,-192.252185,0.00041096,30]
[406801620,1772203861052,-192.252185,0.00041096,30]
[406801621,1772203861061,-192.252185,0.00041096,30]
[406801622,1772203861071,-192.252185,0.00041096,30]
[406801623,1772203861081,-192.252185,0.00041096,30]
[406801624,1772203861090,-192.252185,0.00041096,30]
[406801625,1772203861099,-192.252185,0.00041096,30]
[406801626,1772203861109,-192.252185,0.00041096,30]
[406801627,1772203861118,-192.252185,0.00041096,30]
[406801628,1772203861128,-192.252179,0.00041096,30]
[406801629,1772203861137,-151.0,0.00041096,120]
[406801630,1772203861147,-151.0,0.00041096,120]
[406801631,1772203861156,-179.053427,0.00041096,120]
[406801632,1772203861171,-250.19237,0.00041096,120]
[406801633,1772203861180,-151.0,0.00041096,35]
[406801634,1772203861190,-206.26011,0.00041096,35]
[406801635,1772203861199,-151.0,0.00041096,120]
[406801636,1772203861208,-151.0,0.00041096,2]
[406801637,1772203861218,-151.0,0.00041096,2]
[406801638,1772203861227,-151.0,0.00041096,2]
[406801639,1772203861237,-151.0,0.00041096,2]
[406801640,1772203861246,-151.0,0.00041096,2]
[406801641,1772203861255,-151.0,0.00041096,2]
[406801642,1772203861265,-151.0,0.00041096,2]
[406801643,1772203861274,-151.0,0.00041096,2]
[406801644,1772203861284,-198.324231,0.00041096,2]
[406801645,1772203861293,-179.309069,0.00041096,120]
[406801646,1772203861303,-151.0,0.00041096,60]
[406801647,1772203861312,-271.350221,0.00041096,60]
[406801648,1772203861322,-305.618826,0.00041096,120]
[406801649,1772203861331,-305.618826,0.00041096,120]
[406801650,1772203861340,-305.618826,0.00041096,120]
[406801651,1772203861350,-305.618826,0.00041096,120]
[406801652,1772203861359,-305.618826,0.00041096,120]
[406801653,1772203861369,-305.618826,0.00041096,120]
[406801654,1772203861377,-305.618826,0.00041096,120]
[406801655,1772203861386,-151.0,0.00041096,120]
[406801656,1772203861394,-151.0,0.00041096,120]
[406801657,1772203861404,-151.0,0.00041096,120]
[406801658,1772203861417,-151.0,0.00041096,120]
[406801659,1772203861426,-171.980489,0.00041096,120]
[406801660,1772203861434,-151.0,0.00041096,120]
[406801661,1772203861552,-151.0,0.00041096,120]
[406801662,1772203861561,-151.0,0.00041096,120]
[406801663,1772203861569,-151.0,0.00041096,120]
[406801664,1772203861578,-151.0,0.00041096,120]
[406801665,1772203861587,-151.0,0.00041096,120]
[406801666,1772203861595,-151.0,0.00041096,120]
[406801667,1772203861604,-151.0,0.00041096,120]
[406801668,1772203861613,-151.0,0.00041096,120]
[406801669,1772203861622,-305.618826,0.00041096,120]
[406801670,1772203861630,-151.0,0.00041096,120]
[406801671,1772203861639,-305.618826,0.00041096,120]
[406801672,1772203861648,-230.880715,0.00041096,120]
[406801673,1772203861657,-305.618826,0.00041096,120]
[406801674,1772203861668,-305.618826,0.00041096,120]
[406801675,1772203861676,-305.618826,0.00041096,120]
[406801676,1772203861685,-305.618826,0.00041096,120]
[406801677,1772203861694,-305.618826,0.00041096,120]
[406801678,1772203861703,-305.618826,0.00041096,120]
[406801679,1772203861712,-151.0,0.00041096,120]
[406801680,1772203861721,-305.618826,0.00041096,120]
[406801681,1772203861729,-305.618826,0.00041096,120]
[406801682,1772203861738,-305.618826,0.00041096,120]
[406801683,1772203861746,-305.618826,0.00041096,120]
[406801684,1772203861756,-305.618827,0.00041096,120]
[406801685,1772203861764,-279.283033,0.00041096,120]
[406801686,1772203861781,-151.0,0.00041096,120]
[406801687,1772203861790,-242.550492,0.00041096,120]
[406801688,1772203861799,-151.0,0.00041096,120]
[406801689,1772203861808,-158.953754,0.00041096,120]
[406801690,1772203861816,-244.678012,0.00041096,120]
[406801691,1772203861825,-237.535353,0.00041096,120]
[406801692,1772203861834,-444.926488,0.00041096,120]
[406801693,1772203861843,-444.926488,0.00041096,120]
[406801694,1772203861851,-444.926488,0.00041096,120]
[406801695,1772203861860,-444.926488,0.00041096,120]
[406801696,1772203861869,-444.926488,0.00041096,120]
[406801697,1772203861877,-444.926488,0.00041096,120]
[406801698,1772203861887,-444.926488,0.00041096,120]
[406801699,1772203861896,-444.926488,0.00041096,120]
[406801700,1772203861905,-444.926488,0.00041096,120]
[406801701,1772203861916,-269.614138,0.00041096,120]
[406801702,1772203861926,-444.926488,0.00041096,120]
[406801703,1772203861935,-444.926488,0.00041096,120]
[406801704,1772203861945,-444.926488,0.00041096,120]
[406801705,1772203861955,-444.926488,0.00041096,120]
[406801706,1772203861964,-444.926488,0.00041096,120]
[406801707,1772203861973,-444.926488,0.00041096,120]
[406801708,1772203861984,-444.926488,0.00041096,120]
[406801709,1772203861994,-444.926488,0.00041096,120]
[406801710,1772203862004,-444.926488,0.00041096,120]
[406801711,1772203862014,-444.926488,0.00041096,120]
[406801712,1772203862023,-444.926493,0.00041096,120]
[406801713,1772203862033,-151.0,0.00041096,120]
[406801714,1772203862042,-151.844546,0.00041096,120]
[406801715,1772203862051,-151.0,0.00041096,120]
[406801716,1772203862061,-151.0,0.00041096,120]
[406801717,1772203862071,-151.0,0.00041096,120]
[406801718,1772203862080,-913.665125,0.00041096,15]
[406801719,1772203862090,-151.0,0.00041096,120]
[406801720,1772203862099,-913.665125,0.00041096,15]
[406801721,1772203862108,-913.665125,0.00041096,15]
[406801722,1772203862117,-913.665125,0.00041096,15]
[406801723,1772203862130,-913.665125,0.00041096,15]
[406801724,1772203862139,-913.665125,0.00041096,15]
[406801725,1772203862149,-913.665125,0.00041096,15]
[406801726,1772203862158,-913.665125,0.00041096,15]
[406801727,1772203862169,-913.665125,0.00041096,15]
[406801728,1772203862179,-913.665125,0.00041096,15]
[406801729,1772203862189,-913.665125,0.00041096,15]
[406801730,1772203862198,-913.665125,0.00041096,15]
[406801731,1772203862207,-913.665125,0.00041096,15]
[406801732,1772203862217,-913.665125,0.00041096,15]
[406801733,1772203862226,-913.665125,0.00041096,15]
[406801734,1772203862236,-913.665125,0.00041096,15]
[406801735,1772203862247,-913.665125,0.00041096,15]
[406801736,1772203862257,-913.665125,0.00041096,15]
[406801737,1772203862268,-913.665125,0.00041096,15]
[406801738,1772203862277,-913.665119,0.00041096,15]
[406801739,1772203862287,-234.314225,0.00041096,120]
[406801740,1772203862297,-151.0,0.00041096,120]
[406801741,1772203862306,-151.0,0.00041096,120]
[406801742,1772203862315,-259.526818,0.00041096,120]
[406801743,1772203862325,-151.0,0.00041096,120]
[406801744,1772203862334,-151.0,0.00041096,120]
[406801745,1772203862343,-151.0,0.00041096,120]
[406801746,1772203862353,-193.817179,0.00041096,120]
[406801747,1772203862363,-193.817179,0.00041096,120]
[406801748,1772203862372,-151.0,0.00041096,120]
[406801749,1772203862382,-193.817179,0.00041096,120]
[406801750,1772203862392,-151.0,0.00041096,120]
[406801751,1772203862402,-193.817179,0.00041096,120]
[406801752,1772203862417,-151.0,0.00041096,120]
[406801753,1772203862426,-193.817179,0.00041096,120]
[406801754,1772203862436,-151.0,0.00041096,120]
[406801755,1772203862445,-193.817179,0.00041096,120]
[406801756,1772203862455,-151.0,0.00041096,120]
[406801757,1772203862465,-193.817179,0.00041096,120]
[406801758,1772203862474,-151.0,0.00041096,120]
[406801759,1772203862483,-151.0,0.00041096,120]
[406801760,1772203862494,-193.817179,0.00041096,120]
[406801761,1772203862503,-151.0,0.00041096,120]
[406801762,1772203862512,-151.0,0.00041096,120]
[406801763,1772203862521,-151.0,0.00041096,120]
[406801764,1772203862530,-151.0,0.00041096,120]
[406801765,1772203862539,-193.817179,0.00041096,120]
[406801766,1772203862548,-242.130723,0.00041096,120]
[406801767,1772203862558,-151.0,0.00041096,120]
[406801768,1772203862567,-193.817179,0.00041096,120]
[406801769,1772203862576,-151.0,0.00041096,120]
[406801770,1772203862586,-242.130723,0.00041096,120]
[406801771,1772203862595,-222.796126,0.00041096,120]
[406801772,1772203862604,-193.817179,0.00041096,120]
[406801773,1772203862613,-151.0,0.00041096,120]
[406801774,1772203862622,-242.130723,0.00041096,120]
[406801775,1772203862632,-193.817179,0.00041096,120]
[406801776,1772203862642,-151.0,0.00041096,120]
[406801777,1772203862651,-242.130723,0.00041096,120]